bitfinex/quotes_SOLUSD_20250819
["timestamp","ask_amount","ask_price","bid_price","bid_amount"]
[1755565986408,31.31527643,185.46,185.44,0.03]
[1755565986611,65.16005274,185.45,185.44,0.03]
[1755565986819,65.16005274,185.45,185.43,0.03]
[1755565986820,41.10621557,185.44,185.43,0.03]
[1755565987012,55.52918621,185.44,185.43,0.03]
[1755565987215,41.10621557,185.43,185.4,0.03]
[1755565987414,91.15667207,185.43,185.4,0.03]
[1755565987620,87.15199725,185.43,185.4,0.03]
[1755565988310,219.85199725,185.43,185.4,0.03]
[1755565988535,225.24486787,185.43,185.4,0.03]
[1755565989035,180.61199725,185.43,185.4,0.03]
[1755565989243,179.95199725,185.43,185.4,0.03]
[1755565989427,132.7,185.43,185.4,0.03]
[1755565989626,6.14578168,185.47,185.42,0.73]
[1755565989840,39.24,185.46,185.42,6.87578168]
[1755565990037,39.24,185.45,185.43,0.7]
[1755565990240,39.24,185.45,185.44,0.7]
[1755565990922,39.24,185.45,185.44,6.09257981]
[1755565991736,39.24,185.45,185.44,5.39257981]
[1755565992469,39.24,185.45,185.44,6.09257981]
[1755565993565,39.24,185.45,185.44,5.39257981]
[1755565993727,39.24,185.45,185.44,6.09257981]
[1755565994826,39.24,185.45,185.44,16.18557368]
[1755565995030,39.24,185.45,185.44,6.09257981]
[1755565995722,39.24,185.45,185.44,16.18557368]
[1755565996351,0.06,185.49,185.44,16.18557368]
[1755565996665,0.06,185.49,185.48,15.48441073]
[1755565997172,0.06,185.49,185.48,16.18441073]
[1755566000367,1e-08,185.49,185.48,16.18441073]
[1755566000523,1e-08,185.49,185.48,42.18441073]
[1755566008175,0.06,185.51,185.48,42.18441073]
[1755566008176,1e-08,185.51,185.49,15.10621557]
[1755566008338,1e-08,185.51,185.5,10.09299387]
[1755566008539,1e-08,185.51,185.5,10.79299387]
[1755566009369,1e-08,185.51,185.5,16.18382944]
[1755566010345,1e-08,185.51,185.5,12.23327133]
[1755566010870,1e-08,185.51,185.5,11.53327133]
[1755566012753,0.72000001,185.51,185.49,11.53349038]
[1755566012969,0.72000001,185.51,185.5,6.14243576]
[1755566013585,0.72000001,185.51,185.5,11.53327133]
[1755566014171,1e-08,185.51,185.5,11.53327133]
[1755566014377,1e-08,185.51,185.5,12.23327133]
[1755566014756,1e-08,185.51,185.5,11.53327133]
[1755566015476,0.72000001,185.51,185.49,11.5335441]
[1755566015678,0.72,185.5,185.49,11.5335441]
[1755566015862,1e-08,185.51,185.49,11.5335441]
[1755566016583,1e-08,185.51,185.5,6.84243576]
[1755566016965,1e-08,185.51,185.5,6.14243576]
[1755566017671,1e-08,185.51,185.5,11.53327133]
[1755566018278,1e-08,185.51,185.5,12.23327133]
[1755566018882,0.68000001,185.51,185.5,5.39083557]
[1755566020678,1e-08,185.51,185.5,11.53327133]
[1755566020886,1e-08,185.51,185.5,12.23327133]
[1755566021666,1e-08,185.51,185.5,53.3394869]
[1755566021882,1e-08,185.53,185.52,31.39025442]
[1755566022085,1e-08,185.53,185.52,37.53269018]
[1755566022388,0.06,185.57,185.53,15.10621557]
[1755566022685,0.06,185.57,185.56,6.14243576]
[1755566023070,0.06,185.57,185.56,6.84243576]
[1755566023486,0.06,185.57,185.56,12.23152823]
[1755566024271,0.06,185.57,185.56,15.46459461]
[1755566025688,0.06,185.57,185.55,5.38938291]
[1755566025871,0.06,185.57,185.56,10.07550214]
[1755566027478,0.06,185.57,185.56,15.46459461]
[1755566027674,0.06,185.57,185.56,16.16459461]
[1755566028192,0.06,185.57,185.56,15.46459461]
[1755566031183,0.06,185.57,185.56,16.16459461]
[1755566031892,0.06,185.57,185.56,15.46459461]
[1755566033371,0.06,185.57,185.56,16.16459461]
[1755566036198,0.06,185.57,185.56,15.46459461]
[1755566036378,0.74,185.57,185.56,5.38909247]
[1755566036578,0.06,185.57,185.56,5.38909247]
[1755566036777,0.06,185.57,185.56,15.46459461]
[1755566038492,0.06,185.57,185.55,5.41938291]
[1755566038690,0.06,185.57,185.56,10.07550214]
[1755566038888,0.74,185.57,185.55,15.49488505]
[1755566039304,0.06,185.57,185.55,15.49488505]
[1755566039602,10.75550214,185.56,185.55,0.03]
[1755566040196,14.77750953,185.56,185.55,0.03]
[1755566040701,29.8837251,185.56,185.55,0.03]
[1755566041005,41.10621557,185.54,185.53,0.03]
[1755566041180,58.8250381,185.54,185.53,0.03]
[1755566041495,14.77750953,185.54,185.53,0.03]
[1755566043707,23.78900637,185.54,185.53,0.03]
[1755566044215,26.0,185.52,185.51,0.03]
[1755566044504,15.10621557,185.51,185.49,0.03]
[1755566044723,10.17345045,185.5,185.49,0.03]
[1755566044889,19.18610948,185.5,185.49,0.03]
[1755566045203,19.86610948,185.5,185.49,0.03]
[1755566045502,45.86610948,185.5,185.49,0.03]
[1755566045877,45.86648064,185.5,185.49,0.03]
[1755566046680,55.58186064,185.5,185.49,0.03]
[1755566047092,51.96003718,185.5,185.49,0.03]
[1755566047378,57.35087275,185.5,185.49,0.03]
[1755566047580,60.96635549,185.5,185.49,0.03]
[1755566048012,57.35087275,185.5,185.49,0.03]
[1755566049491,60.9632099,185.5,185.49,0.03]
[1755566049804,34.9632099,185.5,185.47,0.03]
[1755566050015,47.25765863,185.48,185.47,0.03]
[1755566050214,54.89237433,185.48,185.47,0.03]
[1755566050517,29.55237433,185.48,185.47,0.03]
[1755566051419,57.33145404,185.48,185.47,0.03]
[1755566051618,53.30907549,185.48,185.47,0.03]
[1755566052622,31.31666029,185.48,185.47,0.03]
[1755566052822,15.10621557,185.47,185.46,0.03]
[1755566053121,68.63072762,185.47,185.46,0.03]
[1755566053621,74.02243517,185.47,185.46,0.03]
[1755566054820,70.01485037,185.47,185.46,0.03]
[1755566055023,74.01841412,185.47,185.46,0.03]
[1755566055239,70.41292993,185.47,185.46,0.03]
[1755566057127,147.71621557,185.44,185.43,0.03]
[1755566057422,60.35765863,185.44,185.43,0.03]
[1755566057797,61.01765863,185.44,185.43,0.03]
[1755566058509,70.66400978,185.44,185.43,0.03]
[1755566060210,70.00400978,185.44,185.43,0.03]
[1755566060521,70.66400978,185.44,185.43,0.03]
[1755566063111,147.74621557,185.42,185.41,0.03]
[1755566063317,86.35765863,185.42,185.41,0.03]
[1755566063507,87.01765863,185.42,185.41,0.03]
[1755566064335,92.4108201,185.42,185.41,0.03]
[1755566064939,86.25937704,185.42,185.41,0.03]
[1755566065236,91.7508201,185.42,185.41,0.03]
[1755566065424,92.4108201,185.42,185.41,0.03]
[1755566066817,92.4108201,185.42,185.39,0.03]
[1755566066818,15.10621557,185.41,185.39,0.03]
[1755566067021,25.90295151,185.41,185.39,0.03]
[1755566067230,87.01765863,185.4,185.39,0.03]
[1755566067826,219.71765863,185.4,185.39,0.03]
[1755566068327,225.11140188,185.4,185.39,0.03]
[1755566069526,218.95995882,185.4,185.39,0.03]
[1755566069831,224.45140188,185.4,185.39,0.03]
[1755566070032,225.11140188,185.4,185.39,0.03]
[1755566070529,224.45140188,185.4,185.39,0.03]
[1755566071352,212.90621557,185.4,185.39,0.03]
[1755566071530,197.8,185.4,185.39,0.74]
[1755566071728,164.85144306,185.4,185.39,0.74]
[1755566071923,203.95144306,185.4,185.39,0.74]
[1755566072327,203.95144306,185.4,185.39,0.03]
[1755566072533,224.45140188,185.4,185.39,0.03]
[1755566074750,15.10621557,185.39,185.37,0.03]
[1755566074926,41.10621557,185.36,185.35,0.03]
[1755566075133,86.33765863,185.36,185.35,0.03]
[1755566075446,91.73256583,185.36,185.35,0.03]
[1755566076244,92.39256583,185.36,185.35,0.03]
[1755566076549,91.73256583,185.36,185.35,0.03]
[1755566078236,92.40256583,185.36,185.35,0.03]
[1755566078452,96.39401721,185.36,185.33,0.03]
[1755566078664,47.25765863,185.34,185.33,0.03]
[1755566078819,86.33765863,185.34,185.33,0.03]
[1755566079022,87.00765863,185.34,185.33,0.03]
[1755566079226,86.33765863,185.34,185.33,0.03]
[1755566080247,91.733148,185.34,185.33,0.03]
[1755566080447,95.72968988,185.34,185.33,0.03]
[1755566081360,89.57824682,185.34,185.33,0.03]
[1755566081650,95.72968988,185.34,185.33,0.03]
[1755566082232,96.39968988,185.34,185.33,0.03]
[1755566082438,95.7365976,185.34,185.33,0.03]
[1755566083120,95.73618404,185.34,185.33,0.03]
[1755566088462,56.65618404,185.34,185.33,0.72]
[1755566088656,95.73618404,185.34,185.33,0.72]
[1755566089962,95.73618404,185.34,185.33,0.03]
[1755566090837,100.02315537,185.34,185.33,0.03]
[1755566091966,74.04004616,185.34,185.33,0.03]
[1755566092331,26.0,185.24,185.15,0.69]
[1755566092531,15.10621557,185.27,185.11,0.69]
[1755566092532,41.10621557,185.2,185.11,0.69]
[1755566092861,15.10621557,185.15,185.11,0.69]
[1755566093062,6.15144306,185.12,185.08,0.69]
[1755566093369,6.15144306,185.12,185.01,2.94047547]
[1755566093370,6.15144306,185.09,185.01,2.94047547]
[1755566093558,6.15144306,185.04,185.02,0.69]
[1755566093894,39.06,185.03,185.01,0.77544647]
[1755566094159,39.06,185.03,185.02,6.15144306]
[1755566094345,39.06,185.04,185.02,0.69]
[1755566094740,26.0,185.12,185.02,0.69]
[1755566094949,54.18621557,185.11,185.02,0.69]
[1755566095186,6.15144306,185.1,185.04,6.15144306]
[1755566095370,45.23144306,185.09,185.05,0.69]
[1755566095958,6.15144306,185.06,185.03,0.69]
[1755566096180,6.15144306,185.06,185.01,0.77544647]
[1755566096181,39.08,185.05,185.04,0.69]
[1755566096686,39.08,185.05,185.04,6.84144306]
[1755566097011,39.08,185.05,185.04,0.69]
[1755566097293,45.23144306,185.05,185.01,1.46544647]
[1755566097456,45.23144306,185.05,185.02,0.69]
[1755566097865,39.08,185.05,185.01,0.77544647]
[1755566098058,6.15144306,185.03,185.01,1.46544647]
[1755566098270,39.08,185.02,185.01,0.77544647]
[1755566098479,39.08,185.02,185.01,6.18045807]
[1755566098679,12.84119949,185.06,185.01,12.33190113]
[1755566098902,12.84119949,185.06,185.03,6.15144306]
[1755566099085,12.84119949,185.06,185.04,0.69]
[1755566099086,39.1,185.05,185.04,0.69]
[1755566099460,45.25144306,185.05,185.01,6.87045807]
[1755566099660,45.25144306,185.05,185.02,0.69]
[1755566099661,39.1,185.05,185.02,0.69]
[1755566099969,39.1,185.04,185.03,0.69]
[1755566100165,45.25144306,185.04,185.01,0.77544647]
[1755566100369,6.15144306,185.02,185.01,0.77544647]
[1755566100584,45.27144306,185.02,185.01,0.77544647]
[1755566100891,60.37765863,185.02,185.01,0.77544647]
[1755566101590,32.15144306,185.04,185.01,1.46544647]
[1755566101894,39.14,185.03,185.01,6.87052721]
[1755566102391,39.14,185.03,185.01,0.77544647]
[1755566102595,12.84119949,185.06,185.02,6.84144306]
[1755566102802,12.84119949,185.06,185.05,6.15144306]
[1755566102972,52.00119949,185.06,185.05,6.84144306]
[1755566103179,39.16,185.06,185.05,6.84144306]
[1755566103801,39.16,185.06,185.01,19.69330439]
[1755566103802,39.16,185.06,185.01,6.1805213]
[1755566104002,39.16,185.06,185.02,0.69]
[1755566104198,39.16,185.06,185.02,6.09480797]
[1755566104500,39.16,185.06,185.02,16.23285181]
[1755566104667,10.13804384,185.05,185.01,0.77544647]
[1755566104871,39.18,185.04,185.01,0.77544647]
[1755566105298,39.85,185.04,185.01,0.77544647]
[1755566105600,10.80804384,185.03,185.01,0.77544647]
[1755566105774,39.2,185.02,185.01,0.77544647]
[1755566105971,41.10621557,185.07,185.02,6.09457155]
[1755566106170,39.2,185.06,185.03,0.69]
[1755566106428,39.22,185.06,185.04,0.69]
[1755566106693,39.28,185.08,185.02,0.69]
[1755566106895,39.28,185.08,185.03,0.69]
[1755566107100,13.06601209,185.12,185.03,0.69]
[1755566107101,13.06601209,185.12,185.07,10.13804384]
[1755566107398,13.06601209,185.12,185.11,10.13804384]
[1755566107604,13.06601209,185.12,185.11,10.82804384]
[1755566107775,39.32,185.16,185.11,0.69]
[1755566107980,39.32,185.16,185.12,10.13804384]
[1755566108405,15.10621557,185.12,185.03,5.40427564]
[1755566108567,10.13804384,185.1,185.04,10.83804384]
[1755566108774,10.13804384,185.09,185.04,10.83804384]
[1755566108972,10.13804384,185.06,185.01,11.61349031]
[1755566109291,10.13804384,185.06,185.01,1.47544647]
[1755566109604,10.13804384,185.06,185.02,0.7]
[1755566109805,39.34,185.09,185.01,0.77544647]
[1755566110106,49.47804384,185.09,185.03,10.83804384]
[1755566110487,39.34,185.09,185.04,16.24228076]
[1755566110800,10.13804384,185.08,185.02,10.83804384]
[1755566111098,10.13804384,185.07,185.02,10.83804384]
[1755566111272,10.13804384,185.08,185.02,10.13804384]
[1755566111472,10.13804384,185.08,185.03,0.7]
[1755566111692,39.34,185.09,185.04,10.83804384]
[1755566111976,39.34,185.09,185.05,10.83804384]
[1755566112187,49.47804384,185.09,185.01,19.69310695]
[1755566112507,39.34,185.09,185.03,0.7]
[1755566112681,10.13804384,185.08,185.03,0.7]
[1755566113000,44.74283993,185.09,185.04,10.83804384]
[1755566113001,39.34,185.09,185.04,10.83804384]
[1755566113300,39.34,185.09,185.05,10.83804384]
[1755566113670,39.34,185.09,185.07,10.13804384]
[1755566113877,39.34,185.12,185.08,10.83804384]
[1755566114109,39.34,185.12,185.1,10.13804384]
[1755566114401,54.44621557,185.15,185.11,0.7]
[1755566114573,5.39927649,185.21,185.14,10.13804384]
[1755566114776,0.67,185.24,185.17,10.13804384]
[1755566115080,0.67,185.34,185.23,10.13804384]
[1755566115274,10.13804384,185.33,185.27,10.13804384]
[1755566115577,26.67,185.34,185.24,0.7]
[1755566115578,49.85804384,185.32,185.24,0.7]
[1755566115783,10.13804384,185.29,185.23,10.13804384]
[1755566115998,39.7,185.28,185.21,0.7]
[1755566116305,39.72,185.29,185.21,0.7]
[1755566116485,39.72,185.29,185.24,10.13804384]
[1755566116695,49.85804384,185.29,185.23,5.39859359]
[1755566116919,50.52804384,185.29,185.23,15.53663743]
[1755566117273,10.13804384,185.26,185.2,10.13804384]
[1755566117606,10.13804384,185.23,185.18,0.7]
[1755566117785,10.13804384,185.23,185.16,5.40073449]
[1755566117985,0.67,185.22,185.16,5.40073449]
[1755566118301,39.72,185.21,185.16,15.53877833]
[1755566118491,10.13804384,185.19,185.14,15.53907381]
[1755566118682,0.67,185.2,185.14,15.53907381]
[1755566118881,0.67,185.2,185.15,10.13804384]
[1755566119822,41.77621557,185.26,185.19,10.13804384]
[1755566120107,41.77621557,185.26,185.21,10.13804384]
[1755566120108,39.7,185.25,185.21,10.13804384]
[1755566120308,10.13804384,185.24,185.19,10.13804384]
[1755566120488,0.67,185.23,185.18,10.13804384]
[1755566120689,10.80804384,185.23,185.17,10.13804384]
[1755566121292,10.13804384,185.21,185.16,0.03]
[1755566121505,10.13804384,185.17,185.16,0.03]
[1755566122110,10.13804384,185.19,185.16,0.03]
[1755566122417,49.83804384,185.2,185.16,0.03]
[1755566123618,50.50804384,185.2,185.16,0.03]
[1755566124120,39.7,185.2,185.17,0.7]
[1755566124406,0.06,185.22,185.19,10.13804384]
[1755566124609,0.06,185.22,185.21,10.13804384]
[1755566125113,0.06,185.22,185.16,0.03]
[1755566125328,10.13804384,185.21,185.16,0.03]
[1755566125488,0.06,185.22,185.16,0.03]
[1755566125684,0.06,185.22,185.18,10.13804384]
[1755566125987,10.19804384,185.22,185.17,15.53844234]
[1755566126191,0.06,185.22,185.17,16.23844234]
[1755566126488,0.06,185.22,185.18,10.13804384]
[1755566126692,0.06,185.22,185.2,10.13804384]
[1755566127235,0.06,185.22,185.17,6.1003985]
[1755566127530,0.06,185.22,185.21,10.13804384]
[1755566127905,0.06,185.22,185.21,16.23732033]
[1755566129634,0.06,185.22,185.18,0.7]
[1755566129931,0.06,185.22,185.19,10.13804384]
[1755566130094,0.06,185.22,185.2,16.23761187]
[1755566130602,0.06,185.22,185.21,10.13804384]
[1755566130799,0.06,185.22,185.21,10.83804384]
[1755566131000,0.06,185.22,185.21,10.13804384]
[1755566131217,0.06,185.22,185.21,10.83804384]
[1755566132097,0.06,185.26,185.24,26.0]
[1755566132441,0.06,185.26,185.25,10.83804384]
[1755566134031,0.06,185.26,185.25,16.2361545]
[1755566134237,0.06,185.26,185.25,5.39811066]
[1755566134422,0.06,185.26,185.23,10.13804384]
[1755566134630,0.06,185.26,185.23,5.39862771]
[1755566134800,0.06,185.26,185.23,15.53667155]
[1755566135335,0.06,185.26,185.25,10.13804384]
[1755566135697,0.06,185.26,185.25,10.83804384]
[1755566136126,0.06,185.26,185.25,16.2361545]
[1755566136334,0.06,185.26,185.25,6.09811066]
[1755566136507,0.06,185.26,185.25,16.2361545]
[1755566139924,0.06,185.26,185.25,6.09811066]
[1755566140125,0.06,185.26,185.24,5.39835755]
[1755566140331,0.06,185.26,185.23,5.39862216]
[1755566140638,0.06,185.26,185.23,15.536666]
[1755566141136,0.06,185.26,185.25,10.13804384]
[1755566141522,1e-08,185.26,185.25,10.79804384]
[1755566141722,0.06,185.28,185.27,26.0]
[1755566141915,0.06,185.28,185.27,36.13804384]
[1755566142245,0.06,185.28,185.27,42.19557177]
[1755566148040,0.06,185.28,185.27,81.67557177]
[1755566149020,0.06,185.32,185.28,15.10621557]
[1755566149233,0.06,185.32,185.31,36.13804384]
[1755566149447,0.06,185.32,185.31,10.13804384]
[1755566151238,0.06,185.32,185.31,15.53440669]
[1755566151541,0.06,185.32,185.31,16.19440669]
[1755566151734,0.06,185.32,185.31,15.53440669]
[1755566158756,0.06,185.32,185.29,5.39694532]
[1755566158967,0.06,185.32,185.31,10.13804384]
[1755566163161,0.06,185.32,185.31,10.79804384]
[1755566163363,0.06,185.32,185.31,0.66]
[1755566163669,0.06,185.32,185.31,10.13804384]
[1755566163851,0.06,185.32,185.31,15.53440669]
[1755566164370,0.06,185.32,185.31,11.55391394]
[1755566166868,0.06,185.32,185.31,5.39636285]
[1755566167064,0.06,185.32,185.31,11.55391394]
[1755566167575,0.76,185.32,185.3,5.39660023]
[1755566167946,0.06,185.32,185.3,11.55415132]
[1755566168165,0.06,185.32,185.3,5.39660023]
[1755566168371,0.06,185.32,185.3,11.55415132]
[1755566169056,0.06,185.32,185.31,6.15755109]
[1755566169449,0.06,185.32,185.3,11.55415132]
[1755566169663,0.06,185.32,185.31,6.15755109]
[1755566170253,0.06,185.32,185.3,5.39660023]
[1755566170254,0.06,185.32,185.3,11.55415132]
[1755566171484,0.06,185.32,185.31,6.84755109]
[1755566172159,0.06,185.32,185.3,5.39660023]
[1755566172359,0.06,185.32,185.3,11.55415132]
[1755566172675,0.71,185.32,185.3,5.39660023]
[1755566172876,0.06,185.32,185.3,11.55415132]
[1755566173375,0.06,185.32,185.31,6.84755109]
[1755566174356,0.06,185.32,185.31,12.24391394]
[1755566174952,0.06,185.32,185.31,11.55391394]
[1755566175367,0.06,185.32,185.31,5.39636285]
[1755566175681,0.71,185.32,185.3,5.39659808]
[1755566176756,0.06,185.32,185.3,5.39659808]
[1755566177681,0.06,185.32,185.3,11.55414917]
[1755566177887,0.06,185.32,185.3,5.39659808]
[1755566178189,0.65,185.31,185.28,5.42717099]
[1755566178692,0.06,185.32,185.28,0.03]
[1755566178693,6.80755109,185.3,185.28,0.03]
[1755566178848,0.65,185.29,185.28,0.03]
[1755566179463,0.65,185.31,185.28,0.03]
[1755566179670,0.06,185.32,185.3,6.15755109]
[1755566179880,0.06,185.32,185.31,6.15755109]
[1755566180059,0.06,185.32,185.3,6.15755109]
[1755566181259,0.06,185.32,185.31,6.15755109]
[1755566181453,0.06,185.32,185.3,6.15755109]
[1755566182254,0.06,185.32,185.3,6.84755109]
[1755566182855,0.06,185.32,185.31,5.39636285]
[1755566184680,0.06,185.32,185.31,12.24391394]
[1755566185071,0.06,185.32,185.31,11.55391394]
[1755566185758,0.06,185.32,185.31,12.24391394]
[1755566187193,0.06,185.32,185.31,6.08636285]
[1755566187361,0.06,185.32,185.31,12.24391394]
[1755566187687,0.06,185.34,185.33,26.0]
[1755566187897,0.06,185.34,185.33,32.15755109]
[1755566188285,0.06,185.34,185.33,32.84755109]
[1755566189757,0.06,185.34,185.33,38.24333158]
[1755566190868,0.06,185.36,185.33,77.38333158]
[1755566191065,1e-08,185.36,185.35,21.26376666]
[1755566191264,0.06,185.42,185.38,26.0]
[1755566191474,0.06,185.42,185.4,6.15755109]
[1755566191871,0.06,185.42,185.4,12.24129434]
[1755566193497,0.06,185.42,185.4,5.39374325]
[1755566193999,0.06,185.42,185.4,11.55129434]
[1755566194383,0.06,185.42,185.4,12.24129434]
[1755566194688,1e-08,185.41,185.4,51.36129434]
[1755566196978,1e-08,185.41,185.4,66.46750991]
[1755566197699,1e-08,185.42,185.41,15.10621557]
[1755566197903,1e-08,185.42,185.41,21.26376666]
[1755566198112,1e-08,185.42,185.41,24.10458566]
[1755566198797,0.06,185.45,185.43,32.15755109]
[1755566198798,1e-08,185.44,185.43,32.15755109]
[1755566198976,1e-08,185.44,185.43,76.67042171]
[1755566199177,1e-08,185.44,185.43,70.51287062]
[1755566199589,1e-08,185.44,185.43,37.55042171]
[1755566199910,1e-08,185.44,185.43,38.23042171]
[1755566200277,1e-08,185.44,185.43,77.35042171]
[1755566200686,1e-08,185.45,185.43,77.35042171]
[1755566200983,1e-08,185.45,185.44,12.2301309]
[1755566201875,1e-08,185.45,185.44,11.5501309]
[1755566202097,1e-08,185.45,185.44,50.6501309]
[1755566202309,0.69000001,185.45,185.44,5.39257981]
[1755566202983,0.69000001,185.45,185.43,5.39287062]
[1755566203702,1e-08,185.45,185.43,5.39287062]
[1755566205305,0.69,185.44,185.42,5.3930979]
[1755566205478,0.69,185.43,185.42,5.3930979]
[1755566206479,6.15755109,185.44,185.42,5.3930979]
[1755566206706,6.8475511,185.45,185.42,5.3930979]
[1755566207105,6.8475511,185.45,185.41,5.39345234]
[1755566207609,1e-08,185.45,185.42,6.83755109]
[1755566207779,1e-08,185.45,185.43,6.83755109]
[1755566207982,1e-08,185.45,185.44,45.25755109]
[1755566208228,1e-08,185.45,185.44,45.93755109]
[1755566209107,1e-08,185.45,185.44,51.3301309]
[1755566209484,1e-08,185.45,185.44,50.6501309]
[1755566209689,1e-08,185.45,185.44,44.49257981]
[1755566210283,1e-08,185.45,185.38,13.48539171]
[1755566210284,6.8475511,185.45,185.38,13.48539171]
[1755566210495,6.15755109,185.43,185.4,5.39374325]
[1755566210696,1e-08,185.45,185.42,6.15755109]
[1755566211008,1e-08,185.45,185.44,32.15755109]
[1755566211187,1e-08,185.45,185.44,37.5501309]
[1755566211529,1e-08,185.45,185.44,38.2301309]
[1755566213389,1e-08,185.45,185.44,37.5501309]
[1755566213793,1e-08,185.45,185.44,31.39257981]
[1755566213995,0.69000001,185.45,185.43,26.0]
[1755566214196,6.1575511,185.45,185.43,26.0]
[1755566214511,0.69,185.44,185.41,5.39345234]
[1755566214711,0.69,185.43,185.41,31.39345234]
[1755566215486,6.84755109,185.42,185.39,5.42396544]
[1755566215687,0.69,185.41,185.39,5.42396544]
[1755566216221,6.15755109,185.42,185.39,5.42396544]
[1755566216384,1e-08,185.45,185.4,6.83755109]
[1755566216894,6.8475511,185.45,185.4,6.83755109]
[1755566217285,0.69000001,185.45,185.41,5.39345234]
[1755566217483,1e-08,185.45,185.42,6.83755109]
[1755566217683,1e-08,185.45,185.42,6.15755109]
[1755566217909,1e-08,185.45,185.41,25.0346343]
[1755566218124,1e-08,185.45,185.41,19.55708321]
[1755566218716,0.69000001,185.45,185.41,18.87708321]
[1755566219198,1e-08,185.45,185.41,5.39345234]
[1755566219401,0.69,185.44,185.41,5.39345234]
[1755566220327,6.15755109,185.42,185.39,0.03]
[1755566220526,6.15755109,185.4,185.39,0.03]
[1755566220898,6.84755109,185.4,185.39,0.03]
[1755566221500,27.34750991,185.4,185.39,0.03]
[1755566222119,0.69,185.4,185.39,0.03]
[1755566222506,6.84755109,185.4,185.39,0.03]
[1755566223321,15.10621557,185.43,185.39,0.03]
[1755566223503,6.15755109,185.41,185.39,0.03]
[1755566223817,44.47233047,185.45,185.4,0.68]
[1755566223818,1e-08,185.45,185.4,0.68]
[1755566224021,1e-08,185.45,185.41,6.83755109]
[1755566224219,1e-08,185.45,185.42,6.15755109]
[1755566224405,1e-08,185.45,185.41,6.15755109]
[1755566224745,1e-08,185.45,185.44,6.15755109]
[1755566225103,1e-08,185.45,185.44,6.83755109]
[1755566225613,1e-08,185.45,185.44,12.2301309]
[1755566226329,1e-08,185.45,185.44,16.16087823]
[1755566228022,1e-08,185.48,185.46,26.0]
[1755566228211,1e-08,185.48,185.47,36.08829842]
[1755566228709,1e-08,185.48,185.47,36.75829842]
[1755566228911,1e-08,185.48,185.47,36.08829842]
[1755566229526,1e-08,185.48,185.47,26.0]
[1755566229921,1e-08,185.48,185.47,31.39170755]
[1755566231436,10.80829843,185.48,185.45,26.0]
[1755566231606,10.08829842,185.46,185.42,5.39316147]
[1755566231806,10.80829842,185.46,185.42,5.39316147]
[1755566232027,0.72,185.45,185.42,5.39316147]
[1755566232536,10.08829842,185.46,185.42,5.39316147]
[1755566232717,10.08829842,185.43,185.39,0.03]
[1755566233043,10.80829842,185.42,185.39,5.42397529]
[1755566233335,10.80829842,185.41,185.39,5.42397529]
[1755566233565,1e-08,185.48,185.41,15.10621557]
[1755566233709,1e-08,185.48,185.47,10.08829842]
[1755566233916,1e-08,185.48,185.47,41.48000597]
[1755566234111,1e-08,185.48,185.47,42.15000597]
[1755566234805,1e-08,185.48,185.47,31.39170755]
[1755566235242,1e-08,185.48,185.47,5.39170755]
[1755566235432,10.80829843,185.48,185.44,26.0]
[1755566235632,10.80829843,185.48,185.44,31.39257981]
[1755566236048,0.72000001,185.48,185.44,31.39257981]
[1755566236426,1e-08,185.48,185.46,10.08829842]
[1755566236850,1e-08,185.48,185.46,10.75829842]
[1755566237050,1e-08,185.48,185.47,10.75829842]
[1755566238184,1e-08,185.48,185.47,16.15000597]
[1755566241139,1e-08,185.48,185.47,31.25622154]
[1755566241471,1e-08,185.49,185.48,15.10621557]
[1755566241686,1e-08,185.49,185.48,25.86451399]
[1755566242645,1e-08,185.49,185.48,31.25593085]
[1755566244650,1e-08,185.5,185.48,31.25593085]